bitfinex-derivatives/quotes_BNBF0:USTF0_20250116
["timestamp","ask_amount","ask_price","bid_price","bid_amount"]
[1736989170797,3.10064354,709.87,708.72,3.78519889]
[1736989170996,3.10064354,709.86,708.72,3.78519889]
[1736989171190,3.10064354,709.85,708.72,3.78519889]
[1736989171394,3.10064354,709.84,708.72,3.78519889]
[1736989171597,3.10064354,709.83,708.72,3.78519889]
[1736989171896,3.10064354,709.82,708.72,3.78519889]
[1736989172096,1.04450284,709.9,708.72,3.78519889]
[1736989172297,3.10086985,709.89,708.72,3.78519889]
[1736989172494,3.10086985,709.88,708.72,3.78519889]
[1736989172789,3.10086985,709.87,708.72,3.78519889]
[1736989172993,3.10086985,709.86,708.72,3.78519889]
[1736989173192,3.10086985,709.85,708.72,3.78519889]
[1736989173395,3.10086985,709.84,708.72,3.78519889]
[1736989173593,3.10086985,709.83,708.72,3.78519889]
[1736989173800,3.10086985,709.82,708.72,3.78519889]
[1736989173993,3.10086985,709.81,708.72,3.78519889]
[1736989174193,3.10086985,709.8,708.72,3.78519889]
[1736989174395,3.10086985,709.79,708.72,3.78519889]
[1736989174597,3.10086985,709.78,708.72,3.78519889]
[1736989174897,3.10086985,709.77,708.72,3.78519889]
[1736989175097,3.10086985,709.76,708.72,3.78519889]
[1736989175300,3.10086985,709.75,708.72,3.78519889]
[1736989175497,3.10086985,709.74,708.72,3.78519889]
[1736989175695,3.10086985,709.73,708.72,3.78519889]
[1736989175897,3.10086985,709.72,708.72,3.78519889]
[1736989176093,3.10086985,709.71,708.72,3.78519889]
[1736989176393,3.10086985,709.7,708.72,3.78519889]
[1736989176595,1.89082725,709.69,708.72,3.78519889]
[1736989176798,0.28169014,710.0,708.72,3.78519889]
[1736989176799,1.89082725,709.68,708.72,3.78519889]
[1736989177000,1.89082725,709.67,708.72,3.78519889]
[1736989177199,1.89082725,709.66,708.72,3.78519889]
[1736989177395,1.89082725,709.65,708.72,3.78519889]
[1736989177596,1.89082725,709.64,708.72,3.78519889]
[1736989177795,1.89082725,709.63,708.72,3.78519889]
[1736989177994,1.13455063,709.62,708.72,3.78519889]
[1736989178299,1.04450284,709.85,708.72,3.78519889]
[1736989178500,3.10089853,709.84,708.72,3.78519889]
[1736989178701,3.10089853,709.83,708.72,3.78519889]
[1736989178899,3.10089853,709.82,708.72,3.78519889]
[1736989179100,3.10089853,709.81,708.72,3.78519889]
[1736989179302,3.10089853,709.8,708.72,3.78519889]
[1736989179496,3.10089853,709.79,708.72,3.78519889]
[1736989179701,3.10089853,709.78,708.72,3.78519889]
[1736989179901,3.10089853,709.77,708.72,3.78519889]
[1736989180097,3.10089853,709.76,708.72,3.78519889]
[1736989180298,3.10089853,709.75,708.72,3.78519889]
[1736989180499,3.10089853,709.74,708.72,3.78519889]
[1736989180696,1.89084627,709.73,708.72,3.78519889]
[1736989181002,1.89084627,709.72,708.72,3.78519889]
[1736989181202,1.89084627,709.71,708.72,3.78519889]
[1736989181399,1.89084627,709.7,708.72,3.78519889]
[1736989181602,1.89084627,709.69,708.72,3.78519889]
[1736989181801,1.89084627,709.68,708.72,3.78519889]
[1736989182002,1.89084627,709.67,708.72,3.78519889]
[1736989182201,1.89084627,709.66,708.72,3.78519889]
[1736989182503,1.13455639,709.65,708.72,3.78519889]
[1736989182699,1.13455639,709.64,708.72,3.78519889]
[1736989182899,1.04450284,709.98,708.72,3.78519889]
[1736989183100,3.10090183,709.97,708.72,3.78519889]
[1736989183298,3.10090183,709.96,708.72,3.78519889]
[1736989183501,3.10090183,709.95,708.72,3.78519889]
[1736989183702,3.10090183,709.94,708.72,3.78519889]
[1736989183906,3.10090183,709.93,708.72,3.78519889]
[1736989184104,3.10090183,709.92,708.72,3.78519889]
[1736989184307,3.10090183,709.91,708.72,3.78519889]
[1736989184506,3.10090183,709.9,708.72,3.78519889]
[1736989184707,3.10090183,709.89,708.72,3.78519889]
[1736989184900,3.10090183,709.88,708.72,3.78519889]
[1736989185101,3.10090183,709.87,708.72,3.78519889]
[1736989185407,3.10090183,709.86,708.72,3.78519889]
[1736989185608,3.10090183,709.85,708.72,3.78519889]
[1736989185802,3.10090183,709.84,708.72,3.78519889]
[1736989186005,3.10105426,709.83,708.72,3.78519889]
[1736989186205,3.10105426,709.82,708.72,3.78519889]
[1736989186506,3.10105426,709.81,708.72,3.78519889]
[1736989186706,3.10105426,709.8,708.72,3.78519889]
[1736989187006,3.10105426,709.79,708.72,3.78519889]
[1736989187206,3.10105426,709.78,708.72,3.78519889]
[1736989187403,3.10105426,709.77,708.72,3.78519889]
[1736989187607,3.10105426,709.76,708.72,3.78519889]
[1736989187801,3.10105426,709.75,708.72,3.78519889]
[1736989188001,3.10105426,709.74,708.72,3.78519889]
[1736989188202,3.10105426,709.73,708.72,3.78519889]
[1736989188400,3.10186491,709.72,708.72,3.78519889]
[1736989188603,3.10186491,709.71,708.72,3.78519889]
[1736989188810,3.10186491,709.7,708.72,3.78519889]
[1736989189006,3.10186491,709.69,708.72,3.78519889]
[1736989189209,3.10186491,709.68,708.72,3.78519889]
[1736989189406,3.10186491,709.67,708.72,3.78519889]
[1736989189606,3.10186491,709.66,708.72,3.78519889]
[1736989189800,3.10187442,709.65,708.72,3.78519889]
[1736989190006,1.89144885,709.64,708.72,3.78519889]
[1736989190206,1.89144885,709.63,708.72,3.78519889]
[1736989190405,1.89144885,709.62,708.72,4.91319889]
[1736989190601,1.89144885,709.61,708.72,4.91319889]
[1736989190805,1.89144885,709.6,708.72,4.91319889]
[1736989191001,1.89144885,709.59,708.72,4.91319889]
[1736989191202,1.89144885,709.58,708.72,4.91319889]
[1736989191405,1.89144885,709.57,708.72,4.91319889]
[1736989191606,1.89144885,709.56,708.72,6.25919889]
[1736989191806,1.89161189,709.55,708.72,6.25919889]
[1736989192006,0.28169014,710.0,708.72,6.25919889]
[1736989192007,1.89161189,709.54,708.72,6.25919889]
[1736989192203,1.13501754,709.53,708.72,6.25919889]
[1736989192402,1.13501754,709.52,708.72,6.25919889]
[1736989192602,0.28169014,710.0,708.72,6.25919889]
[1736989192806,3.10190123,709.99,708.72,6.25919889]
[1736989193007,3.10190123,709.98,708.72,6.25919889]
[1736989193207,3.10190123,709.97,708.72,6.25919889]
[1736989193404,3.10190123,709.96,708.72,6.25919889]
[1736989193609,3.10190123,709.95,708.72,6.25919889]
[1736989193803,3.10190123,709.94,708.72,6.25919889]
[1736989194008,3.10190123,709.93,708.72,6.25919889]
[1736989194207,0.28169014,710.0,708.72,6.25919889]
[1736989194208,3.10190123,709.92,708.72,6.25919889]
[1736989194407,3.10190123,709.91,708.72,6.25919889]
[1736989194608,3.10190123,709.9,708.72,6.25919889]
[1736989194804,3.10190123,709.89,708.72,6.25919889]
[1736989195009,3.10190123,709.88,708.72,6.25919889]
[1736989195210,3.10190123,709.87,708.72,6.25919889]
[1736989195406,3.10190123,709.86,708.72,6.25919889]
[1736989195606,3.10086951,709.85,708.72,6.25919889]
[1736989195912,3.10086951,709.84,708.72,6.25919889]
[1736989196212,3.0990599,709.83,708.72,6.25919889]
[1736989196408,3.0990599,709.82,708.72,6.25919889]
[1736989196607,3.0990599,709.81,708.72,6.25919889]
[1736989196807,3.0990599,709.8,708.72,6.25919889]
[1736989197007,3.0990599,709.79,708.72,6.25919889]
[1736989197214,3.0990599,709.78,708.72,6.25919889]
[1736989197513,3.09825588,709.77,708.72,6.25919889]
[1736989197713,3.09825588,709.76,708.72,6.25919889]
[1736989198009,3.09825588,709.75,708.72,6.25919889]
[1736989198213,3.09825588,709.74,708.72,6.25919889]
[1736989198409,3.09825588,709.73,708.72,6.25919889]
[1736989198615,3.09825588,709.72,708.72,6.25919889]
[1736989198809,3.09825588,709.71,708.72,6.25919889]
[1736989199012,3.09825588,709.7,708.72,6.25919889]
[1736989199209,3.09825588,709.69,708.72,6.25919889]
[1736989199413,3.09825588,709.68,708.72,6.25919889]
[1736989199614,3.09825588,709.67,708.72,6.25919889]
[1736989199815,3.09825588,709.66,708.72,6.25919889]
[1736989200009,3.09825588,709.65,708.72,6.25919889]
[1736989200217,3.09825588,709.64,708.72,6.25919889]
[1736989200410,3.09825588,709.63,708.72,6.25919889]
[1736989200716,3.09825588,709.62,708.72,6.25919889]
[1736989200913,3.09825588,709.61,708.72,6.25919889]
[1736989201113,3.09825588,709.6,708.72,6.25919889]
[1736989201315,3.09825588,709.59,708.72,6.25919889]
[1736989201517,3.09825588,709.58,708.72,6.25919889]
[1736989201716,3.09825588,709.57,708.72,6.25919889]
[1736989202017,3.09825588,709.56,708.72,6.25919889]
[1736989202216,3.09825588,709.55,708.72,6.25919889]
[1736989202416,3.09825588,709.54,708.72,6.25919889]
[1736989202616,3.09711511,709.53,708.72,6.25919889]
[1736989202917,3.09711511,709.52,708.72,6.25919889]
[1736989203119,3.09711511,709.51,708.72,6.25919889]
[1736989203313,1.88628456,709.5,708.72,6.25919889]
[1736989203618,1.88628456,709.49,708.72,6.25919889]
[1736989203917,1.88628456,709.48,708.72,6.25919889]
[1736989204217,1.88628456,709.47,708.72,6.25919889]
[1736989204420,1.13180982,709.46,708.72,6.25919889]
[1736989204713,1.04450284,709.89,708.72,6.25919889]
[1736989205018,3.09331905,709.88,708.72,6.25919889]
[1736989205316,3.09331905,709.87,708.72,6.25919889]
[1736989205518,3.09331905,709.86,708.72,6.25919889]
[1736989205712,3.09331905,709.85,708.72,6.25919889]
[1736989205912,3.09331905,709.84,708.72,6.25919889]
[1736989206111,3.09331905,709.83,708.72,6.25919889]
[1736989206317,3.09331905,709.82,708.72,6.25919889]
[1736989206620,3.09332575,709.81,708.72,6.25919889]
[1736989206818,3.09332575,709.8,708.72,6.25919889]
[1736989207116,3.09332575,709.79,708.72,6.25919889]
[1736989207313,0.28169014,710.0,708.72,6.25919889]
[1736989207314,3.09332575,709.78,708.72,6.25919889]
[1736989207511,3.09332575,709.77,708.72,6.25919889]
[1736989207717,3.09332575,709.76,708.72,6.25919889]
[1736989207911,3.09332575,709.75,708.72,6.25919889]
[1736989208116,3.09332575,709.74,708.72,6.25919889]
[1736989208317,3.09332575,709.73,708.72,6.25919889]
[1736989208517,0.28169014,710.0,708.72,6.25919889]
[1736989208518,1.88622493,709.72,708.72,6.25919889]
[1736989208717,1.88622493,709.71,708.72,6.25919889]
[1736989208917,1.88622493,709.7,708.72,6.25919889]
[1736989209117,1.88622493,709.69,708.72,6.25919889]
[1736989209319,1.88622493,709.68,708.72,6.25919889]
[1736989209515,1.88635007,709.67,708.72,6.25919889]
[1736989209720,1.13178692,709.66,708.72,6.25919889]
[1736989209920,0.28169014,710.0,708.72,6.25919889]
[1736989210220,3.09386018,709.99,708.72,6.25919889]
[1736989210422,3.09386018,709.98,708.72,6.25919889]
[1736989210620,3.09386018,709.97,708.72,6.25919889]
[1736989210919,3.09418404,709.96,708.72,6.25919889]
[1736989211221,3.09418404,709.95,708.72,6.25919889]
[1736989211416,3.09418404,709.94,708.72,6.25919889]
[1736989211617,3.09418404,709.93,708.72,6.25919889]
[1736989211816,3.09418404,709.92,708.72,6.25919889]
[1736989212015,3.09418404,709.91,708.72,6.25919889]
[1736989212221,3.09418404,709.9,708.72,6.25919889]
[1736989212415,3.09418404,709.89,708.72,6.25919889]
[1736989212615,3.09418404,709.88,708.72,6.25919889]
[1736989212815,1.88667685,709.87,708.72,6.25919889]
[1736989213018,1.88667685,709.86,708.72,6.25919889]
[1736989213221,1.88667685,709.85,708.72,6.25919889]
[1736989213412,1.88667685,709.84,708.72,6.25919889]
[1736989213619,1.88667685,709.83,708.72,6.25919889]
[1736989213815,1.88667685,709.82,708.72,6.25919889]
[1736989214015,1.88667685,709.81,708.72,6.25919889]
[1736989214218,1.88667685,709.8,708.72,6.25919889]
[1736989214419,1.88667685,709.79,708.72,6.25919889]
[1736989214619,1.88667685,709.78,708.72,6.25919889]
[1736989214816,1.88707182,709.77,708.72,6.25919889]
[1736989215015,1.88707182,709.76,708.72,6.25919889]
[1736989215323,1.88702084,709.75,708.72,6.25919889]
[1736989215521,1.13198486,709.74,708.72,6.25919889]
[1736989215720,1.13198486,709.73,708.72,6.25919889]
[1736989215917,0.28169014,710.0,708.72,6.25919889]
[1736989216120,3.09638936,709.99,708.72,6.25919889]
[1736989216320,3.09638936,709.98,708.72,6.25919889]
[1736989216621,3.09638936,709.97,708.72,6.25919889]
[1736989216822,3.09638936,709.96,708.72,6.25919889]
[1736989217021,3.09638936,709.95,708.72,6.25919889]
[1736989217222,1.88809911,709.94,708.72,6.25919889]
[1736989217421,1.88809911,709.93,708.72,6.25919889]
[1736989217622,1.04450284,710.37,708.72,6.25919889]
[1736989217623,1.1329177,709.92,708.72,6.25919889]
[1736989217922,1.04450284,710.37,708.72,6.25919889]
[1736989218124,3.09703805,710.36,708.72,6.25919889]
[1736989218324,3.09703805,710.35,708.72,6.25919889]
[1736989218623,3.09635661,710.34,708.72,6.25919889]
[1736989218823,3.09635661,710.33,708.72,6.25919889]
[1736989219018,0.69956634,711.45,708.72,6.25919889]
[1736989219019,3.09635661,710.32,708.72,6.25919889]
[1736989219218,3.09635661,710.31,708.72,6.25919889]
[1736989219415,3.09635661,710.3,708.72,6.25919889]
[1736989219719,3.09635661,710.29,708.72,6.25919889]
[1736989219918,3.09635661,710.28,708.72,6.25919889]
[1736989220119,3.09635661,710.27,708.72,6.25919889]
[1736989220321,3.09635661,710.26,708.72,6.25919889]
[1736989220521,3.09635661,710.25,708.72,6.25919889]
[1736989220721,3.09635661,710.24,708.72,6.25919889]
[1736989220922,3.09635661,710.23,708.72,6.25919889]
[1736989221121,3.09635661,710.22,708.72,6.25919889]
[1736989221317,3.09635661,710.21,708.72,6.25919889]
[1736989221516,3.09635661,710.2,708.72,6.25919889]
[1736989221722,3.09635661,710.19,708.72,6.25919889]
[1736989221922,3.09635661,710.18,708.72,6.25919889]
[1736989222122,3.09635661,710.17,708.72,6.25919889]
[1736989222324,3.09635661,710.16,708.72,6.25919889]
[1736989222625,3.09635661,710.15,708.72,6.25919889]
[1736989222818,1.2534034,711.41,708.72,6.25919889]
[1736989222819,3.09635661,710.14,708.72,6.25919889]
[1736989223021,3.09635661,710.13,708.72,6.25919889]
[1736989223224,1.88823519,710.12,708.72,6.25919889]
[1736989223522,1.88823519,710.11,708.72,6.25919889]
[1736989223723,1.88823519,710.1,708.72,6.25919889]
[1736989223925,3.0950055,710.09,708.72,6.25919889]
[1736989224224,3.0950055,710.08,708.72,6.25919889]
[1736989224425,3.09440288,710.07,708.72,6.25919889]
[1736989224623,3.09440288,710.06,708.72,6.25919889]
[1736989224824,3.09440288,710.05,708.72,6.25919889]
[1736989225025,1.88748375,710.04,708.72,6.25919889]
[1736989225324,1.88748375,710.03,708.72,6.25919889]
[1736989225525,1.88748375,710.02,708.72,6.25919889]
[1736989225719,1.04450284,710.49,708.72,6.25919889]
[1736989225720,1.88748375,710.01,708.72,6.25919889]
[1736989225922,1.88748375,710.0,708.73,2.78631076]
[1736989226118,1.88748375,709.99,708.74,0.28219093]
[1736989226324,1.1331593,709.98,708.74,0.28219093]
[1736989226525,1.88535,709.97,708.74,0.28219093]
[1736989226725,1.13128147,709.96,708.74,0.28219093]
[1736989226926,1.04450284,710.46,708.74,0.28219093]
[1736989227227,3.63211116,710.45,708.74,3.24819093]
[1736989227428,3.35059945,710.44,708.74,5.80619093]
[1736989227628,3.35059945,710.43,708.74,5.80619093]
[1736989227828,3.35059945,710.42,708.74,5.80619093]
[1736989228129,3.63212701,710.41,708.74,5.80619093]
[1736989228332,3.37326726,710.4,708.74,7.84019093]
[1736989228527,3.6321341,710.39,708.74,7.84019093]
[1736989228721,3.35059861,710.38,708.74,7.84019093]
[1736989228925,3.63214203,710.37,708.74,7.84019093]
[1736989229124,3.63214599,710.36,708.74,7.84019093]
[1736989229330,3.35059861,710.35,708.74,7.84019093]
[1736989229530,3.35059861,710.34,708.74,7.84019093]
[1736989229730,0.28154738,710.36,708.74,7.84019093]
[1736989229731,3.35059861,710.33,708.74,7.84019093]
[1736989230028,3.35059861,710.32,708.74,7.84019093]
[1736989230223,3.34989038,710.31,708.74,7.84019093]
[1736989230429,3.34989038,710.3,708.74,7.84019093]
[1736989230625,3.34998298,710.29,708.74,7.84019093]
[1736989230825,3.0911201,710.28,708.74,7.84019093]
[1736989231021,3.0911201,710.27,708.74,7.84019093]
[1736989231226,3.3499675,710.26,708.74,7.84019093]
[1736989231424,3.0911201,710.25,708.74,7.84019093]
[1736989231627,0.28154738,710.36,708.74,7.84019093]
[1736989231628,3.0911201,710.24,708.74,7.84019093]
[1736989231926,3.09072678,710.23,708.74,7.84019093]
[1736989232129,3.09072678,710.22,708.74,7.84019093]
[1736989232432,3.09072678,710.21,708.74,7.84019093]
[1736989232623,3.09072678,710.2,708.74,7.84019093]
[1736989232828,3.09072678,710.19,708.74,7.84019093]
[1736989233028,3.09072678,710.18,708.74,7.84019093]
[1736989233329,3.09072678,710.17,708.74,7.84019093]
[1736989233529,3.09072678,710.16,708.74,7.84019093]
[1736989233725,3.09072678,710.15,708.74,7.84019093]
[1736989233929,3.09072678,710.14,708.74,7.84019093]
[1736989234130,3.09072678,710.13,708.74,7.84019093]
[1736989234432,1.88465627,710.12,708.74,7.84019093]
[1736989234632,1.88465627,710.11,708.74,7.84019093]
[1736989234824,1.88465627,710.1,708.74,7.84019093]
[1736989235026,3.09030997,710.09,708.74,7.84019093]
[1736989235226,1.88465627,710.08,708.74,7.84019093]
[1736989235534,3.09010089,710.07,708.74,7.84019093]
[1736989235736,0.28154738,710.36,708.74,7.84019093]
[1736989235737,3.09010089,710.06,708.74,7.84019093]
[1736989235924,3.09010089,710.05,708.74,7.84019093]
[1736989236128,3.09010089,710.04,708.74,7.84019093]
[1736989236330,3.09010089,710.03,708.74,7.84019093]
[1736989236529,3.09010089,710.02,708.74,7.84019093]
[1736989236830,3.09010089,710.01,708.74,7.84019093]
[1736989237029,3.09010089,710.0,708.74,7.84019093]
[1736989237231,3.09010089,709.99,708.74,7.84019093]
[1736989237430,1.13086221,709.98,708.74,7.84019093]
[1736989237629,3.08935547,709.97,708.74,7.84019093]
[1736989237831,3.08935547,709.96,708.74,7.84019093]
[1736989238026,1.20526025,709.95,708.74,7.84019093]
[1736989238224,3.08862033,709.94,708.74,7.84019093]
[1736989238429,1.88336008,709.93,708.74,7.84019093]
[1736989238633,1.88336008,709.92,708.74,7.84019093]
[1736989238831,1.88336008,709.91,708.74,7.84019093]
[1736989239027,1.32605022,710.36,708.74,7.84019093]
[1736989239028,1.88336008,709.9,708.74,7.84019093]
[1736989239331,1.88336008,709.89,708.74,7.84019093]
[1736989239535,1.88336008,709.88,708.74,7.84019093]
[1736989239828,1.04450284,710.25,708.74,7.84019093]
[1736989240033,3.34799584,710.24,708.74,7.84019093]
[1736989240235,3.34799584,710.23,708.74,7.84019093]
[1736989240436,1.04450284,710.25,708.74,7.84019093]
[1736989240437,3.34799584,710.22,708.74,7.84019093]
[1736989240736,3.34799584,710.21,708.74,7.84019093]
[1736989240932,3.08910113,710.2,708.74,7.84019093]
[1736989241135,3.08910113,710.19,708.74,7.84019093]
[1736989241332,3.3479856,710.18,708.74,7.84019093]
[1736989241533,0.28154738,710.36,708.74,7.84019093]
[1736989241534,3.3479856,710.17,708.74,7.84019093]
[1736989241734,3.3479856,710.16,708.74,7.84019093]
[1736989241933,3.08910113,710.15,708.74,7.84019093]
[1736989242131,3.08910113,710.14,708.74,7.84019093]
[1736989242333,0.28154738,710.36,708.74,7.84019093]
[1736989242334,3.08910113,710.13,708.74,7.84019093]
[1736989242538,3.08910113,710.12,708.74,7.84019093]
[1736989242737,3.08910113,710.11,708.74,7.84019093]
[1736989242938,3.08910113,710.1,708.74,7.84019093]
[1736989243137,3.08910113,710.09,708.74,7.84019093]
[1736989243337,1.04450284,710.22,708.74,7.84019093]
[1736989243534,3.34835248,710.21,708.74,7.84019093]
[1736989243734,1.04450284,710.22,708.74,7.84019093]
[1736989243735,3.34835248,710.2,708.74,7.84019093]
[1736989243940,0.25887071,710.19,708.74,7.84019093]
[1736989244141,1.88398559,710.18,708.74,7.84019093]
[1736989244340,3.08963405,710.17,708.74,7.84019093]
[1736989244541,3.08963405,710.16,708.74,7.84019093]
[1736989244736,3.08963405,710.15,708.74,7.84019093]
[1736989244941,3.08963405,710.14,708.74,7.84019093]
[1736989245141,3.08963405,710.13,708.74,7.84019093]
[1736989245342,3.08963405,710.12,708.74,7.84019093]
[1736989245544,3.08955902,710.11,708.74,7.84019093]
[1736989245841,3.08955902,710.1,708.74,7.84019093]
[1736989246044,3.08955902,710.09,708.74,7.84019093]
[1736989246337,3.08955902,710.08,708.74,7.84019093]
[1736989246643,3.08955902,710.07,708.74,7.84019093]
[1736989246844,3.08955902,710.06,708.74,7.84019093]
[1736989247041,3.08955902,710.05,708.74,7.84019093]
[1736989247242,3.08955902,710.04,708.74,7.84019093]
[1736989247444,3.08955902,710.03,708.74,7.84019093]
[1736989247745,1.88391056,710.02,708.74,7.84019093]
[1736989247943,1.88391056,710.01,708.74,7.84019093]
[1736989248145,1.88391056,710.0,708.74,7.84019093]
[1736989248343,1.88391056,709.99,708.74,7.84019093]
[1736989248540,1.88391056,709.98,708.74,7.84019093]
[1736989248740,1.88391056,709.97,708.74,7.84019093]
[1736989248940,1.88391056,709.96,708.74,7.84019093]
[1736989249141,1.13038027,709.95,708.74,7.84019093]
[1736989249342,1.13038027,709.94,708.74,7.84019093]
[1736989249547,1.04450284,710.15,708.74,7.84019093]
[1736989249841,3.08964128,710.14,708.74,7.84019093]
[1736989250045,3.08964128,710.13,708.74,7.84019093]
[1736989250244,3.08964128,710.12,708.74,7.84019093]
[1736989250445,0.28154738,710.36,708.74,7.84019093]
[1736989250446,3.08964128,710.11,708.74,7.84019093]
[1736989250641,3.08964128,710.1,708.74,7.84019093]
[1736989250841,3.08964128,710.09,708.74,7.84019093]
[1736989251046,3.08964128,710.08,708.74,7.84019093]
[1736989251239,3.08964128,710.07,708.74,7.84019093]
[1736989251443,3.08964128,710.06,708.74,7.84019093]
[1736989251638,3.08964128,710.05,708.74,7.84019093]
[1736989251844,3.08972068,710.04,708.74,7.84019093]
[1736989252045,3.08972068,710.03,708.74,7.84019093]
[1736989252242,3.08972068,710.02,708.74,7.84019093]
[1736989252444,3.09001242,710.01,708.74,7.84019093]
[1736989252746,3.08998809,710.0,708.74,7.84019093]
[1736989252948,3.08997335,709.99,708.74,7.84019093]
[1736989253245,3.0902391,709.98,708.74,7.84019093]
[1736989253440,3.0902391,709.97,708.74,7.84019093]
[1736989253646,3.0902391,709.96,708.74,7.84019093]
[1736989253847,3.0902391,709.95,708.74,7.84019093]
[1736989254039,3.0902391,709.94,708.74,7.84019093]
[1736989254241,3.0902391,709.93,708.74,7.84019093]
[1736989254543,3.0902391,709.92,708.74,8.96819093]
[1736989254745,3.0902391,709.91,708.74,8.96819093]
[1736989255045,1.1305361,709.9,708.74,8.96819093]
[1736989255246,3.09003455,709.89,708.74,8.96819093]
[1736989255440,1.04450284,710.25,708.74,8.96819093]
[1736989255441,3.09003455,709.88,708.74,8.96819093]
[1736989255644,3.09003455,709.87,708.74,8.96819093]
[1736989255844,3.09003455,709.86,708.74,8.96819093]
[1736989256044,3.09003455,709.85,708.74,8.96819093]
[1736989256244,3.09003455,709.84,708.74,8.96819093]
[1736989256442,3.09003455,709.83,708.74,8.96819093]
[1736989256647,0.28154738,710.36,708.74,8.96819093]
[1736989256648,3.09003455,709.82,708.74,8.96819093]
[1736989256949,3.09003455,709.81,708.74,8.96819093]
[1736989257150,3.09003455,709.8,708.74,8.96819093]
[1736989257348,3.09003455,709.79,708.74,8.96819093]
[1736989257649,3.09003455,709.78,708.74,8.96819093]
[1736989257849,3.09003455,709.77,708.74,8.96819093]
[1736989258150,3.09003455,709.76,708.74,8.96819093]
[1736989258351,3.09003455,709.75,708.74,8.96819093]
[1736989258649,3.09003455,709.74,708.74,8.96819093]
[1736989258849,0.75365325,709.73,708.74,8.96819093]
[1736989259042,1.88466471,709.72,708.74,8.96819093]
[1736989259247,1.87455911,709.71,708.74,8.96819093]
[1736989259450,1.13129073,709.7,708.74,8.96819093]
[1736989259649,1.13129073,709.69,708.74,8.96819093]
[1736989259849,1.13129073,709.68,708.74,8.96819093]
[1736989260049,1.04450284,710.32,708.74,8.96819093]
[1736989260246,1.04450284,710.17,708.74,8.96819093]
[1736989260448,2.59674504,710.16,708.74,8.96819093]
[1736989260644,2.59674504,710.15,708.74,8.96819093]
[1736989260845,1.04450284,710.17,708.74,8.96819093]
[1736989260846,2.59686507,710.14,708.74,8.96819093]
[1736989261045,2.59686507,710.13,708.74,8.96819093]
[1736989261247,2.59686507,710.12,708.74,8.96819093]
[1736989261444,2.59686507,710.11,708.74,8.96819093]
[1736989261645,2.33790095,710.1,708.74,8.96819093]
[1736989261950,2.33790095,710.09,708.74,8.96819093]
[1736989262150,2.33790095,710.08,708.74,8.96819093]
[1736989262451,2.33790095,710.07,708.74,8.96819093]
[1736989262651,2.33790095,710.06,708.74,8.96819093]
[1736989262950,2.33790095,710.05,708.74,8.96819093]
[1736989263151,2.33790095,710.04,708.74,8.96819093]
[1736989263350,2.33790095,710.03,708.74,8.96819093]
[1736989263550,2.33790095,710.02,708.74,8.96819093]
[1736989263751,2.33790095,710.01,708.74,8.96819093]
[1736989263954,2.33790095,710.0,708.74,8.96819093]
[1736989264250,2.33790095,709.99,708.74,8.96819093]
[1736989264451,2.33790095,709.98,708.74,8.96819093]
[1736989264652,2.33790095,709.97,708.74,8.96819093]
[1736989264854,2.33790095,709.96,708.74,8.96819093]
[1736989265052,2.33790095,709.95,708.74,8.96819093]
[1736989265253,2.33790095,709.94,708.74,8.96819093]
[1736989265453,2.33790095,709.93,708.74,8.96819093]
[1736989265653,2.33790095,709.92,708.74,8.96819093]
[1736989265952,2.33790095,709.91,708.74,8.96819093]
[1736989266153,2.33973374,709.9,708.74,8.96819093]
[1736989266355,2.33973374,709.89,708.74,8.96819093]
[1736989266548,1.13348511,709.88,708.74,8.96819093]
[1736989266745,1.13348511,709.87,708.74,8.96819093]
[1736989266953,1.13348511,709.86,708.74,8.96819093]
[1736989267153,1.13348511,709.85,708.74,8.96819093]
[1736989267355,1.13348511,709.84,708.74,8.96819093]
[1736989267549,1.13348511,709.83,708.74,8.96819093]
[1736989267854,1.13348511,709.82,708.74,8.96819093]
[1736989268053,1.13348511,709.81,708.74,8.96819093]
[1736989268255,1.13348511,709.8,708.74,8.96819093]
[1736989268454,1.13348511,709.79,708.74,8.96819093]
[1736989268653,1.13348511,709.78,708.74,8.96819093]
[1736989268852,1.13348511,709.77,708.74,8.96819093]
[1736989269050,1.13363465,709.76,708.74,8.96819093]
[1736989269249,1.04450284,710.25,708.74,8.96819093]
[1736989269557,2.88303583,710.24,708.74,8.96819093]
[1736989269754,2.60144088,710.23,708.74,8.96819093]
[1736989269951,2.60144088,710.22,708.74,8.96819093]
[1736989270156,1.13369399,710.21,708.74,8.96819093]
[1736989270356,1.04450284,710.23,708.74,8.96819093]
[1736989270357,1.13369399,710.2,708.74,8.96819093]
[1736989270552,1.13369399,710.19,708.74,8.96819093]
[1736989270758,1.13369399,710.18,708.74,8.96819093]
[1736989271057,1.13369399,710.17,708.74,8.96819093]
[1736989271257,1.88943795,710.16,708.74,8.96819093]
[1736989271456,1.88943795,710.15,708.74,8.96819093]
[1736989271659,1.88943795,710.14,708.74,8.96819093]
[1736989271855,0.75574396,710.13,708.74,8.96819093]
[1736989272060,0.75574396,710.12,708.74,8.96819093]
[1736989272259,1.13369399,710.11,708.74,8.96819093]
[1736989272460,1.04450284,710.72,708.74,8.96819093]
[1736989272661,3.35593255,710.71,708.74,8.96819093]
[1736989272961,0.28141665,710.69,708.74,8.96819093]
[1736989273260,0.25879468,710.68,708.74,8.96819093]
[1736989273562,0.28142457,710.67,708.74,8.96819093]